bitfinex/quotes_SOLUSD_20250429
["timestamp","ask_amount","ask_price","bid_price","bid_amount"]
[1745955111807,0.269243,149.58,149.57,18.70823749]
[1745955112920,0.269243,149.58,149.56,18.70823749]
[1745955114693,6.95465008,149.58,149.56,18.70823749]
[1745955115213,0.269243,149.58,149.56,18.70823749]
[1745955116522,6.95471455,149.58,149.56,18.70823749]
[1745955117628,44.70823749,149.6,149.56,18.70823749]
[1745955117629,6.68493883,149.59,149.56,18.70823749]
[1745955118527,6.68493883,149.59,149.56,18.70823749]
[1745955120228,6.68493883,149.59,149.53,89.18755195]
[1745955120426,25.39317632,149.59,149.55,18.70823749]
[1745955121625,25.39317632,149.59,149.54,18.70823749]
[1745955121816,18.70823749,149.58,149.53,101.20823749]
[1745955122001,18.70823749,149.57,149.53,82.5]
[1745955122403,25.39496433,149.55,149.5,107.73243749]
[1745955122621,18.70823749,149.54,149.5,6.5242]
[1745955122822,18.70823749,149.53,149.49,0.03]
[1745955123037,18.70823749,149.53,149.49,18.73823749]
[1745955124532,6.68806848,149.52,149.49,18.73823749]
[1745955125443,6.68806848,149.52,149.49,0.03]
[1745955125649,6.68806848,149.52,149.49,18.73823749]
[1745955126419,18.70823749,149.56,149.51,18.70823749]
[1745955126625,6.68627975,149.56,149.54,18.70823749]
[1745955127407,6.68627975,149.56,149.53,18.70823749]
[1745955128428,6.68627975,149.56,149.52,18.70823749]
[1745955130345,6.68627975,149.56,149.53,18.70823749]
[1745955132549,6.68627975,149.56,149.52,18.70823749]
[1745955132742,25.39451724,149.56,149.52,18.70823749]
[1745955132944,25.39451724,149.56,149.51,18.70823749]
[1745955134525,25.39451724,149.56,149.52,18.70823749]
[1745955134730,18.70823749,149.54,149.49,26.03]
[1745955134945,18.70823749,149.54,149.5,18.70823749]
[1745955135248,18.70823749,149.54,149.49,18.73823749]
[1745955135452,18.70823749,149.53,149.49,18.73823749]
[1745955135758,18.70823749,149.53,149.49,0.03]
[1745955136839,6.68806848,149.52,149.49,0.03]
[1745955137042,25.39630597,149.52,149.49,0.03]
[1745955137259,18.70823749,149.51,149.49,0.03]
[1745955138548,6.68806848,149.52,149.49,18.73823749]
[1745955138747,6.68806848,149.52,149.49,0.03]
[1745955138956,18.70823749,149.51,149.49,0.03]
[1745955139154,6.68806848,149.52,149.49,0.03]
[1745955139752,18.70823749,149.51,149.49,0.03]
[1745955141040,6.68896321,149.5,149.49,0.03]
[1745955141227,25.3972007,149.5,149.49,0.03]
[1745955141427,6.68896321,149.5,149.49,0.03]
[1745955143162,6.68851581,149.51,149.49,0.03]
[1745955143735,25.3967533,149.51,149.49,0.03]
[1745955144052,18.70823749,149.5,149.49,0.03]
[1745955144947,25.3967533,149.51,149.49,0.03]
[1745955145757,6.68851581,149.51,149.49,0.03]
[1745955147551,6.68827936,149.52,149.5,18.70823749]
[1745955149071,6.68827936,149.52,149.49,0.03]
[1745955149284,6.68827936,149.52,149.5,18.70823749]
[1745955150045,6.68827936,149.52,149.51,18.70823749]
[1745955152838,6.687174,149.54,149.51,18.70823749]
[1745955158375,6.687174,149.54,149.49,0.03]
[1745955158553,6.687174,149.54,149.5,18.70823749]
[1745955159257,25.39541149,149.54,149.5,18.70823749]
[1745955159668,42.11334649,149.54,149.5,18.70823749]
[1745955160177,6.687174,149.54,149.51,18.70823749]
[1745955164781,6.687174,149.54,149.5,18.70823749]
[1745955166479,42.11334649,149.54,149.5,18.70823749]
[1745955166656,42.11334649,149.54,149.49,18.73823749]
[1745955166973,42.11334649,149.54,149.5,18.70823749]
[1745955167472,6.687174,149.54,149.52,18.70823749]
[1745955167663,6.68674298,149.55,149.53,18.70823749]
[1745955168183,6.68647704,149.56,149.54,18.70823749]
[1745955169080,6.68647704,149.56,149.53,18.70823749]
[1745955172176,6.68647704,149.56,149.54,18.70823749]
[1745955172372,19.74600158,149.57,149.55,18.70823749]
[1745955172778,6.68600158,149.57,149.55,18.70823749]
[1745955173288,6.68600158,149.57,149.54,18.70823749]
[1745955174376,6.68538574,149.58,149.54,18.70823749]
[1745955174758,6.68538574,149.58,149.55,18.70823749]
[1745955176083,25.39362323,149.58,149.54,18.70823749]
[1745955176283,6.68538574,149.58,149.55,18.70823749]
[1745955182496,6.68538574,149.58,149.54,18.70823749]
[1745955184795,6.68538574,149.58,149.55,18.70823749]
[1745955185663,6.68538574,149.58,149.54,18.70823749]
[1745955185664,25.39362323,149.58,149.54,18.70823749]
[1745955186599,18.70823749,149.56,149.5,6.6139]
[1745955186897,18.70823749,149.55,149.51,18.70823749]
[1745955187099,18.70823749,149.53,149.49,101.23823749]
[1745955187397,18.70823749,149.53,149.49,18.73823749]
[1745955187771,18.70823749,149.53,149.49,0.03]
[1745955188086,18.70823749,149.52,149.49,0.03]
[1745955188392,18.70823749,149.53,149.49,0.03]
[1745955188571,6.68806848,149.52,149.49,0.03]
[1745955190291,6.68771258,149.53,149.5,18.70823749]
[1745955190478,16.71542315,149.57,149.49,0.03]
[1745955190479,32.68627975,149.56,149.49,0.03]
[1745955190796,32.68627975,149.56,149.53,18.70823749]
[1745955191180,32.68627975,149.56,149.49,0.03]
[1745955191181,6.68627975,149.56,149.55,18.70823749]
[1745955191499,6.68538574,149.58,149.55,18.70823749]
[1745955191693,6.68538574,149.58,149.56,18.70823749]
[1745955193470,6.68538574,149.58,149.55,18.70823749]
[1745955197200,6.68538574,149.58,149.52,82.5]
[1745955197201,18.70823749,149.57,149.52,82.5]
[1745955197402,23.3988501,149.58,149.52,82.5]
[1745955197403,18.70823749,149.56,149.52,18.70823749]
[1745955197900,18.70823749,149.57,149.52,18.70823749]
[1745955199207,18.70823749,149.57,149.53,18.70823749]
[1745955199906,6.68627975,149.56,149.53,18.70823749]
[1745955200386,6.68627975,149.56,149.55,18.70823749]
[1745955201504,6.68583272,149.57,149.54,18.70823749]
[1745955202407,6.68583272,149.57,149.56,18.70823749]
[1745955203309,6.68583272,149.57,149.55,18.70823749]
[1745955206006,6.68493883,149.59,149.56,18.70823749]
[1745955206912,6.68449197,149.6,149.57,18.70823749]
[1745955208015,6.68449197,149.6,149.58,18.70823749]
[1745955208385,6.68449197,149.6,149.53,51.76371194]
[1745955208386,6.68359844,149.62,149.59,18.70823749]
[1745955210097,6.68359844,149.62,149.58,18.70823749]
[1745955210788,6.68359844,149.62,149.6,18.70823749]
[1745955210992,6.68329681,149.63,149.61,18.70823749]
[1745955212389,6.68282186,149.64,149.62,18.70823749]
[1745955212811,6.6818121,149.66,149.63,18.70823749]
[1745955213119,6.68091929,149.68,149.65,18.70823749]
[1745955213325,0.063,149.69,149.67,18.70823749]
[1745955213697,0.063,149.69,149.66,18.70823749]
[1745955213944,0.063,149.69,149.67,18.70823749]
[1745955216304,0.063,149.69,149.68,18.70823749]
[1745955219730,0.063,149.69,149.67,18.70823749]
[1745955219935,0.063,149.69,149.66,18.70823749]
[1745955220633,0.063,149.69,149.65,18.70823749]
[1745955220836,0.063,149.69,149.66,18.70823749]
[1745955221937,0.063,149.69,149.67,18.70823749]
[1745955222539,0.063,149.69,149.68,18.70823749]
[1745955224816,0.063,149.69,149.68,37.78437106]
[1745955226633,0.063,149.69,149.68,44.46529035]
[1745955227157,0.063,149.69,149.68,37.78437106]
[1745955228056,0.063,149.69,149.68,120.28437106]
[1745955229456,0.063,149.69,149.68,160.88365192]
[1745955230424,0.063,149.69,149.68,152.65903263]
[1745955230929,0.063,149.69,149.68,152.51687106]
[1745955231130,0.063,149.69,149.68,120.28437106]
[1745955232153,0.063,149.69,149.68,120.42653263]
[1745955232545,0.063,149.75,149.7,0.14216157]
[1745955232741,0.063,149.75,149.74,18.70823749]
[1745955234355,0.063,149.75,149.7,82.5]
[1745955234546,0.063,149.75,149.71,18.70823749]
[1745955234866,18.77123749,149.75,149.71,18.70823749]
[1745955235045,18.77123749,149.75,149.7,101.20823749]
[1745955235857,18.77123749,149.75,149.7,18.70823749]
[1745955236063,18.70823749,149.74,149.7,18.70823749]
[1745955236478,6.6786883,149.73,149.7,18.70823749]
[1745955237235,18.70823749,149.71,149.65,7.5635]
[1745955237444,18.70823749,149.71,149.64,18.79181043]
[1745955237643,18.70823749,149.71,149.67,18.70823749]
[1745955238038,18.70823749,149.71,149.64,45.21829514]
[1745955238039,18.70823749,149.71,149.66,18.70823749]
[1745955238643,23.37540906,149.73,149.65,0.42648471]
[1745955238644,25.38826421,149.7,149.65,18.70823749]
[1745955239969,42.08833101,149.7,149.65,18.70823749]
[1745955240566,42.08833101,149.7,149.66,18.70823749]
[1745955241861,18.70823749,149.69,149.65,18.70823749]
[1745955242051,6.68091929,149.68,149.65,18.70823749]
[1745955243779,23.37697034,149.72,149.66,18.70823749]
[1745955243986,18.70823749,149.7,149.66,18.70823749]
[1745955244369,18.70823749,149.7,149.63,82.92648471]
[1745955244370,18.70823749,149.69,149.65,18.70823749]
[1745955245488,18.70823749,149.7,149.65,18.70823749]
[1745955246085,18.70823749,149.68,149.64,18.70823749]
[1745955246266,18.70823749,149.67,149.63,101.20823749]
[1745955246587,18.70823749,149.66,149.62,18.70823749]
[1745955247688,6.6822586,149.65,149.62,18.70823749]
[1745955249964,6.6822586,149.65,149.61,82.5]
[1745955249965,6.6818121,149.66,149.63,18.70823749]
[1745955255073,25.39004959,149.66,149.62,18.70823749]
[1745955255675,18.70823749,149.65,149.61,82.5]
[1745955255855,18.70823749,149.64,149.6,18.70823749]
[1745955256876,6.68315177,149.63,149.6,18.70823749]
[1745955260176,6.68270515,149.64,149.6,18.70823749]
[1745955263682,6.68270515,149.64,149.61,18.70823749]
[1745955267478,25.39094264,149.64,149.6,18.70823749]
[1745955270497,6.68270515,149.64,149.61,18.70823749]
[1745955272195,6.68270515,149.64,149.58,82.5]
[1745955272488,6.68270515,149.64,149.6,18.70823749]
[1745955273675,18.70823749,149.64,149.6,18.70823749]
[1745955274021,18.70823749,149.64,149.58,82.5]
[1745955274180,18.70823749,149.64,149.6,18.70823749]
[1745955275891,6.68315177,149.63,149.6,18.70823749]
[1745955277781,18.70823749,149.61,149.57,0.03]
[1745955277985,6.68493883,149.59,149.57,0.03]
[1745955278599,25.39317632,149.59,149.57,0.03]
[1745955279281,6.68493883,149.59,149.57,0.03]
[1745955280900,16.70906564,149.62,149.57,0.03]
[1745955280901,6.68359844,149.62,149.58,18.70823749]
[1745955281201,44.70823749,149.66,149.61,18.70823749]
[1745955281390,18.70823749,149.64,149.59,18.70823749]
[1745955281592,18.70823749,149.62,149.57,18.73823749]
[1745955281789,18.70823749,149.62,149.58,18.70823749]
[1745955282096,18.70823749,149.63,149.58,18.70823749]
[1745955282303,6.68359844,149.62,149.58,18.70823749]
[1745955282794,6.68359844,149.62,149.59,18.70823749]
[1745955283899,6.68315177,149.63,149.6,18.70823749]
[1745955284203,6.68315177,149.63,149.61,18.70823749]
[1745955285002,6.68315177,149.63,149.6,18.70823749]
[1745955286085,6.68315177,149.63,149.59,18.70823749]
[1745955286304,25.39138926,149.63,149.59,18.70823749]
[1745955287107,18.70823749,149.62,149.58,18.70823749]
[1745955287993,6.68538574,149.58,149.57,0.03]
[1745955289282,6.68449197,149.6,149.57,18.73823749]
[1745955290093,18.70823749,149.6,149.57,0.03]
[1745955291310,18.70823749,149.59,149.57,0.03]
[1745955291524,18.70823749,149.58,149.57,0.03]
[1745955292307,25.39362323,149.58,149.57,0.03]
[1745955294314,6.68538574,149.58,149.57,18.73823749]
[1745955294710,6.68538574,149.58,149.57,0.03]
[1745955296218,6.68493883,149.59,149.57,0.03]
[1745955296419,25.39317632,149.59,149.57,0.03]
[1745955297116,6.68493883,149.59,149.57,0.03]
[1745955297320,6.68493883,149.59,149.57,18.73823749]
[1745955297619,6.68493883,149.59,149.57,0.03]
[1745955301411,18.70823749,149.58,149.57,0.03]
[1745955302732,25.39362323,149.58,149.57,0.03]
[1745955304308,42.10708759,149.58,149.54,0.03]
[1745955304605,18.70823749,149.55,149.54,0.03]
[1745955304808,25.39496433,149.55,149.54,0.03]
[1745955305208,6.68672684,149.55,149.54,0.03]
[1745955305926,25.39496433,149.55,149.54,0.03]
[1745955306621,18.70823749,149.57,149.54,0.03]
[1745955306815,18.70823749,149.58,149.54,0.03]
[1745955307128,25.39407021,149.57,149.54,0.03]
[1745955307521,25.39370032,149.58,149.54,0.03]
[1745955307825,25.39339125,149.59,149.55,18.70823749]
[1745955308033,1.6452,149.61,149.57,18.70823749]
[1745955308251,20.35343749,149.61,149.57,18.70823749]
[1745955308935,27.03768819,149.61,149.57,18.70823749]
[1745955309131,25.39248819,149.61,149.57,18.70823749]
[1745955309731,6.6842507,149.61,149.57,18.70823749]
[1745955309943,25.39248819,149.61,149.57,18.70823749]
[1745955310706,6.6842507,149.61,149.58,18.70823749]
[1745955311806,27.6263,149.65,149.6,18.70823749]
[1745955312115,6.6822586,149.65,149.62,18.70823749]
[1745955312316,6.68200999,149.66,149.64,18.70823749]
[1745955312613,6.68091929,149.68,149.65,18.70823749]
[1745955312814,6.68091929,149.68,149.66,18.70823749]
[1745955313013,6.68047297,149.69,149.66,18.70823749]
[1745955313430,25.38871046,149.69,149.65,18.70823749]
[1745955315629,42.0898929,149.69,149.65,18.70823749]
[1745955316938,42.0898929,149.69,149.64,18.70823749]
[1745955317620,6.68002672,149.7,149.66,18.70823749]
[1745955317823,18.70823749,149.69,149.65,18.70823749]
[1745955318243,6.68002672,149.7,149.65,18.70823749]
[1745955318421,18.70823749,149.69,149.65,18.70823749]
[1745955318845,25.38915678,149.68,149.64,18.70823749]
[1745955319050,42.09145501,149.68,149.64,18.70823749]
[1745955319968,42.09145501,149.68,149.61,127.57613357]
[1745955320141,42.09145501,149.68,149.64,18.70823749]
[1745955323845,42.09145501,149.68,149.63,18.70823749]
[1745955324045,18.70823749,149.66,149.62,18.70823749]
[1745955324263,18.70823749,149.67,149.62,18.70823749]
[1745955325059,42.09145501,149.68,149.64,18.70823749]
[1745955325264,6.68091929,149.68,149.65,18.70823749]
[1745955330975,6.68091929,149.68,149.64,18.70823749]
[1745955331771,23.38015635,149.7,149.65,18.70823749]
[1745955331972,18.70823749,149.69,149.65,18.70823749]
[1745955332980,6.68091929,149.68,149.65,18.70823749]
[1745955333350,6.68091929,149.68,149.64,18.70823749]
[1745955335073,6.68091929,149.68,149.66,18.70823749]
[1745955335371,6.68091929,149.68,149.67,18.70823749]
[1745955336153,6.68091929,149.68,149.66,18.70823749]
[1745955336650,6.68047297,149.69,149.66,18.70823749]
[1745955341784,6.68002672,149.7,149.66,18.70823749]
[1745955341960,6.68002672,149.7,149.67,18.70823749]
[1745955342361,25.38826421,149.7,149.63,88.9864]
[1745955342573,25.38826421,149.7,149.66,18.70823749]
[1745955342783,42.08833101,149.7,149.66,18.70823749]
[1745955345267,18.70823749,149.69,149.65,18.70823749]
[1745955347191,6.68091929,149.68,149.65,18.70823749]
[1745955347699,25.38915678,149.68,149.63,25.19463749]
[1745955348487,42.09145501,149.68,149.64,18.70823749]
[1745955351082,42.09145501,149.68,149.63,18.70823749]
[1745955351398,18.70823749,149.66,149.62,18.70823749]
[1745955352286,42.09145501,149.68,149.63,18.70823749]
[1745955356175,18.70823749,149.67,149.63,18.70823749]
[1745955357479,18.70823749,149.67,149.6,84.47528471]
[1745955357480,42.09145501,149.68,149.64,18.70823749]
[1745955358089,18.70823749,149.67,149.62,18.70823749]
[1745955359986,6.6818121,149.66,149.63,18.70823749]
[1745955361309,6.6818121,149.66,149.64,18.70823749]
[1745955362811,6.68136567,149.67,149.64,18.70823749]
[1745955364909,23.38321752,149.68,149.64,18.70823749]
[1745955365298,42.09145501,149.68,149.64,18.70823749]
[1745955367011,18.70823749,149.67,149.62,18.70823749]
[1745955367205,18.70823749,149.67,149.6,84.0488]
[1745955367206,18.70823749,149.65,149.6,18.70823749]
[1745955367510,18.70823749,149.62,149.58,82.5]
[1745955367689,18.70823749,149.62,149.57,18.70823749]
[1745955368118,18.70823749,149.61,149.56,84.0495]
[1745955368414,18.70823749,149.61,149.57,18.70823749]
[1745955369013,6.68449197,149.6,149.57,18.70823749]
[1745955369218,25.39272946,149.6,149.56,82.5]
[1745955369406,25.39272946,149.6,149.56,101.20823749]
[1745955369715,6.68449197,149.6,149.56,101.20823749]
[1745955370017,6.68420412,149.61,149.58,18.70823749]
[1745955370815,6.68420412,149.61,149.57,18.70823749]
[1745955372143,18.70823749,149.61,149.57,18.70823749]
[1745955373442,18.70823749,149.62,149.57,18.70823749]
[1745955373910,18.70823749,149.62,149.58,18.70823749]
[1745955374105,6.68404518,149.61,149.58,18.70823749]
[1745955374311,35.41592719,149.64,149.6,18.70823749]
[1745955374510,6.68315177,149.63,149.59,18.70823749]
[1745955374736,18.70823749,149.62,149.58,18.70823749]
[1745955374939,18.70823749,149.62,149.57,18.70823749]
[1745955375642,18.70823749,149.61,149.57,18.70823749]
[1745955375931,18.70823749,149.61,149.56,101.20823749]
[1745955376309,18.70823749,149.59,149.56,82.5]
[1745955376531,18.70823749,149.59,149.55,18.70823749]
[1745955377930,6.68538574,149.58,149.55,18.70823749]
[1745955378136,6.68538574,149.58,149.54,0.03]
[1745955378311,25.39362323,149.58,149.54,18.73823749]
[1745955379034,6.68538574,149.58,149.54,18.73823749]
[1745955379217,6.68538574,149.58,149.55,18.70823749]
[1745955380135,6.68493883,149.59,149.56,18.70823749]
[1745955380507,18.70823749,149.61,149.58,18.70823749]
[1745955380508,6.68404518,149.61,149.58,18.70823749]
[1745955380712,6.68404518,149.61,149.59,18.70823749]
[1745955380913,6.68404518,149.61,149.58,18.70823749]
[1745955383244,23.39415814,149.61,149.57,18.70823749]
[1745955383441,18.70823749,149.6,149.56,101.20823749]
[1745955383616,18.70823749,149.6,149.56,18.70823749]
[1745955383816,42.10239563,149.61,149.56,18.70823749]
[1745955384117,23.39415814,149.61,149.58,18.70823749]
[1745955385537,23.39415814,149.61,149.57,18.70823749]
[1745955386333,35.41835045,149.61,149.57,18.70823749]
[1745955387447,42.10239563,149.61,149.57,18.70823749]
[1745955388024,18.70823749,149.58,149.54,82.53]
[1745955388453,18.70823749,149.57,149.54,0.03]
[1745955389264,18.70823749,149.56,149.54,0.03]
[1745955389462,6.68627975,149.56,149.54,0.03]
[1745955390480,18.70823749,149.55,149.54,0.03]
[1745955391058,25.39451724,149.56,149.54,0.03]
[1745955391441,18.70823749,149.55,149.54,0.03]
[1745955394376,25.39496433,149.55,149.54,0.03]
[1745955394545,6.68672684,149.55,149.54,0.03]
[1745955394739,18.70823749,149.57,149.54,0.03]
[1745955395060,6.68503496,149.59,149.56,18.70823749]
[1745955395255,6.68404518,149.61,149.57,18.70823749]
[1745955395563,25.39228267,149.61,149.57,18.70823749]
[1745955396138,18.70823749,149.6,149.56,18.70823749]
[1745955396953,6.68493883,149.59,149.56,18.70823749]
[1745955405869,6.68493883,149.59,149.55,18.70823749]
[1745955411593,6.68493883,149.59,149.56,18.70823749]
[1745955412094,6.68462827,149.6,149.57,18.70823749]
[1745955412986,6.68462827,149.6,149.56,18.70823749]
[1745955413868,25.39286576,149.6,149.56,18.70823749]
[1745955414490,25.39286576,149.6,149.55,18.70823749]
[1745955414491,18.70823749,149.59,149.55,18.70823749]
[1745955417200,6.68538574,149.58,149.55,18.70823749]
[1745955418889,16.71122994,149.6,149.56,18.70823749]
[1745955419194,6.68404518,149.61,149.56,18.70823749]
[1745955419195,25.39228267,149.61,149.56,18.70823749]
[1745955420604,18.70823749,149.6,149.56,18.70823749]
[1745955420907,6.68493883,149.59,149.56,18.70823749]
[1745955422172,6.6846875,149.6,149.56,18.70823749]
[1745955424001,25.39292499,149.6,149.56,18.70823749]
[1745955424791,25.39292499,149.6,149.55,18.70823749]
[1745955426407,18.70823749,149.59,149.54,120.31437106]
[1745955426617,18.70823749,149.58,149.54,120.31437106]
[1745955426914,18.70823749,149.59,149.54,120.31437106]
[1745955428519,6.68538574,149.58,149.54,120.31437106]
[1745955428710,6.68538574,149.58,149.55,18.70823749]
[1745955429996,6.6851387,149.59,149.56,18.70823749]
[1745955432916,6.6851387,149.59,149.55,18.70823749]
[1745955434518,6.6851387,149.59,149.56,18.70823749]
[1745955435325,6.68461886,149.6,149.56,18.70823749]
[1745955441095,18.70823749,149.6,149.56,18.70823749]
[1745955441499,12.02019544,149.6,149.55,12.44668015]
[1745955443620,6.68493883,149.59,149.55,12.44668015]
[1745955443827,18.70513427,149.59,149.54,113.1998443]
[1745955444020,18.70513427,149.59,149.55,12.02019544]
[1745955444499,18.70513427,149.59,149.54,113.1998443]
[1745955445630,18.70513427,149.59,149.54,94.55019544]
[1745955446728,12.02019544,149.58,149.54,94.55019544]
[1745955446940,12.02019544,149.58,149.54,82.53]
[1745955447236,12.02019544,149.55,149.54,0.03]
[1745955447435,18.70692228,149.55,149.54,0.03]
[1745955447608,6.6864722,149.56,149.54,0.03]
[1745955451341,23.39415814,149.61,149.54,12.05019544]
[1745955451513,6.68404518,149.61,149.57,12.02019544]
[1745955451712,18.70424062,149.61,149.57,12.02019544]
[1745955452415,8.26827079,149.62,149.59,12.02019544]
[1745955452631,8.26827079,149.62,149.58,12.02019544]
[1745955453051,20.28846623,149.62,149.58,12.02019544]
[1745955453233,18.70386623,149.62,149.58,12.02019544]
[1745955453437,0.063,149.63,149.61,12.02019544]
[1745955455543,18.83624357,149.63,149.59,18.77324357]
[1745955456639,18.77324357,149.62,149.58,101.27324357]
[1745955457740,6.68404518,149.61,149.58,101.27324357]
[1745955459343,18.77324357,149.6,149.56,101.27324357]
[1745955459719,18.77324357,149.59,149.56,82.5]
[1745955459936,6.68538574,149.58,149.55,18.77324357]
[1745955463355,6.68538574,149.58,149.56,18.77324357]
[1745955464258,6.68493883,149.59,149.56,18.77324357]
[1745955464758,6.68493883,149.59,149.55,18.77324357]
[1745955464961,6.68493883,149.59,149.54,89.073]
[1745955465249,6.68493883,149.59,149.55,18.77324357]
[1745955471861,25.4581824,149.59,149.55,18.77324357]
[1745955473058,25.4581824,149.59,149.54,101.30324357]
[1745955473256,25.4581824,149.59,149.54,82.53]
[1745955473257,18.77324357,149.57,149.54,82.53]
[1745955473660,18.77324357,149.56,149.54,82.53]
[1745955473956,6.68627975,149.56,149.54,0.03]
[1745955474743,6.68627975,149.56,149.54,18.80324357]
[1745955474941,6.68627975,149.56,149.54,0.03]
[1745955476056,25.45952332,149.56,149.54,0.03]
[1745955480069,18.77324357,149.55,149.54,0.03]
[1745955480551,25.45952332,149.56,149.54,0.03]
[1745955481069,18.77324357,149.55,149.54,0.03]
[1745955481848,25.45997041,149.55,149.54,0.03]
[1745955487254,27.02457041,149.55,149.54,0.03]
[1745955487461,53.02457041,149.55,149.54,0.03]
[1745955488169,69.74138752,149.55,149.52,0.03]
[1745955488373,18.77324357,149.53,149.52,0.03]
[1745955489573,25.46086478,149.53,149.52,0.03]
[1745955489955,25.46086478,149.53,149.52,1e-08]
[1745955493477,6.68762121,149.53,149.52,1e-08]
[1745955493679,25.46086478,149.53,149.52,1e-08]
[1745955499404,6.68762121,149.53,149.52,1e-08]
[1745955499685,25.46086478,149.53,149.52,1e-08]
[1745955503293,6.68762121,149.53,149.52,1e-08]
[1745955504285,25.46086478,149.53,149.52,1e-08]
[1745955507699,6.68736836,149.54,149.52,1e-08]
[1745955507879,6.68627975,149.56,149.53,18.77324357]
[1745955508194,6.68583272,149.57,149.54,18.77324357]
[1745955508397,6.68583272,149.57,149.53,18.77324357]
[1745955508985,6.68583272,149.57,149.54,18.77324357]
[1745955509184,6.68583272,149.57,149.53,18.77324357]
[1745955515111,6.68583272,149.57,149.54,18.77324357]
[1745955515316,6.68554354,149.58,149.55,18.77324357]
[1745955516707,6.68554354,149.58,149.54,18.77324357]
[1745955516907,16.71026241,149.61,149.56,18.77324357]
[1745955517200,18.77324357,149.62,149.57,18.77324357]
[1745955517379,44.77324357,149.62,149.58,18.77324357]
[1745955517576,25.45684201,149.62,149.58,18.77324357]
[1745955517903,6.68359844,149.62,149.58,18.77324357]
[1745955518207,25.45684201,149.62,149.58,18.77324357]
[1745955520005,6.68359844,149.62,149.58,18.77324357]
[1745955520703,0.063,149.63,149.61,18.77324357]
[1745955523013,0.063,149.63,149.6,19.05756671]
[1745955525016,18.77324357,149.62,149.58,101.27324357]
[1745955525406,18.83624357,149.63,149.59,18.77324357]
[1745955526317,18.83624357,149.63,149.58,101.27324357]
[1745955526788,6.68359844,149.62,149.6,18.77324357]
[1745955526994,6.68359844,149.62,149.59,0.28432314]
[1745955527194,6.68359844,149.62,149.59,19.05756671]
[1745955527807,6.68359844,149.62,149.6,18.77324357]
[1745955528597,6.68359844,149.62,149.59,19.05756671]
[1745955530213,6.68359844,149.62,149.58,101.27324357]
[1745955530406,18.77324357,149.61,149.57,18.77324357]
[1745955530714,6.68359844,149.62,149.57,18.77324357]
[1745955530715,42.16583813,149.62,149.57,18.77324357]
[1745955532116,42.16583813,149.62,149.58,18.77324357]
[1745955532415,23.39259456,149.62,149.59,18.77324357]
[1745955533517,6.68359844,149.62,149.59,18.77324357]
[1745955533899,6.74615177,149.63,149.59,18.77324357]
[1745955538412,6.74615177,149.63,149.6,18.77324357]
[1745955538620,6.74615177,149.63,149.61,18.77324357]
[1745955539511,6.74615177,149.63,149.6,18.77324357]
[1745955539710,0.063,149.63,149.59,18.77324357]
[1745955539914,18.83624357,149.63,149.59,18.77324357]
[1745955540411,0.063,149.63,149.59,18.77324357]
[1745955546830,0.063,149.63,149.6,18.77324357]
[1745955548227,0.063,149.63,149.61,18.77324357]
[1745955549039,0.063,149.63,149.6,18.77324357]
[1745955549429,0.063,149.63,149.61,18.77324357]
[1745955549633,0.063,149.63,149.62,18.77324357]
[1745955567665,0.063,149.63,149.61,12.01148156]
[1745955568044,0.063,149.63,149.62,12.01148156]
[1745955575669,0.063,149.63,149.62,30.94545356]
[1745955575867,0.063,149.63,149.62,37.91337514]
[1745955576344,0.063,149.63,149.62,120.41337514]
[1745955576743,0.063,149.65,149.64,44.64964886]
[1745955577052,0.063,149.65,149.64,140.7813959]
[1745955577271,0.063,149.65,149.64,187.77570294]
[1745955577449,0.063,149.66,149.65,19.21829514]
[1745955577652,0.063,149.66,149.65,63.39111696]
[1745955578378,0.063,149.66,149.65,64.72693291]
[1745955580660,0.063,149.66,149.65,39.2993927]
[1745955582079,0.063,149.66,149.65,121.7993927]
[1745955583084,0.063,149.66,149.65,140.54467431]
[1745955583376,0.063,149.66,149.65,139.20885836]
[1745955583984,0.063,149.66,149.65,145.89111696]
[1745955585180,0.063,149.66,149.65,139.20885836]
[1745955587950,0.063,149.66,149.65,120.46357675]
[1745955588478,0.063,149.66,149.65,119.89493047]
[1745955588680,0.063,149.66,149.65,18.74528161]
[1745955592988,0.063,149.66,149.64,82.5]
[1745955593358,18.80828161,149.66,149.62,18.74528161]
[1745955594296,6.6822586,149.65,149.62,18.74528161]
[1745955594879,6.6822586,149.65,149.63,18.74528161]
[1745955596291,23.44980955,149.66,149.63,18.74528161]
[1745955597573,23.44980955,149.66,149.62,18.74528161]
[1745955597777,42.19509116,149.66,149.62,18.74528161]
[1745955598987,42.19509116,149.66,149.61,18.74528161]
[1745955599283,18.74528161,149.63,149.58,18.74528161]
[1745955599486,18.74528161,149.64,149.59,18.74528161]